[Event "EYTCC U18 Girls 2019"]
[Site "Pardubice"]
[Date "2019.07.11"]
[Round "1.35"]
[White "Kucharska, Honorata"]
[Black "Jaufarally, Nadia"]
[Result "1-0"]
[ECO "B36"]
[WhiteElo "2054"]
[BlackElo "1944"]
[Annotator "NA"]
[PlyCount "115"]
[EventDate "2019.07.11"]
[EventType "swiss"]
[EventCountry "CZE"]
[SourceTitle "playchess.com"]
[Source "ChessBase"]
[SourceQuality "1"]
[WhiteTeam "Poland"]
[BlackTeam "England"]
[WhiteTeamCountry "POL"]
[BlackTeamCountry "ENG"]
[TimeControl "40/5400+30:1800+30"]

1. e4 {[%emt 0:00:00]} c5 {[%emt 0:00:00]} 2. Nf3 {[%emt 0:00:00]} g6 {[%emt 0:00:00]} 3. d4 {[%emt 0:00:00]} cxd4 {[%emt 0:00:00]} 4. Nxd4 {[%emt 0:00:10]} Nc6 {[%emt 0:00:21]} 5. c4 {[%emt 0:00:24]} Nf6 {[%emt 0:00:32]} 6. Nc3 {[%emt 0:00:30]} d6 {[%emt 0:00:23]} 7. Be2 {[%emt 0:02:17]} Nxd4 {[%emt 0:01:05]} 8. Qxd4 {[%emt 0:00:14]} Bg7 {[%emt 0:00:29]} 9. Be3 {[%emt 0:00:31]} O-O {[%emt 0:00:17]} 10. Qd2 {[%emt 0:00:11]} Be6 {[%emt 0:10:10]} 11. Rc1 {[%emt 0:05:40]} Qa5 {[%emt 0:03:38]} 12. f3 {[%emt 0:02:09]} Rfc8 {[%emt 0:03:10]} 13. b3 {[%emt 0:00:32]} a6 {[%emt 0:02:27]} 14. Na4 {[%emt 0:01:01]} Qxd2+ {[%emt 0:01:21]} 15. Kxd2 {[%emt 0:00:19]} Nd7 {[%emt 0:03:25]} 16. g4 {[%emt 0:01:57]} Rc6 {[%emt 0:10:19]} 17. h4 {[%emt 0:07:38]} h6 {[%emt 0:23:36]} 18. Rhg1 {[%emt 0:04:22]} Rd8 {[%emt 0:08:28]} 19. Nc3 {[%emt 0:07:05]} Nc5 {[%emt 0:10:55]} 20. Nd5 {[%emt 0:08:44]} Bxd5 {[%emt 0:11:02]} 21. exd5 {[%emt 0:01:09]} Rcc8 {[%emt 0:02:00]} 22. f4 {[%emt 0:03:58]} Ne4+ {[%emt 0:01:58]} 23. Kd3 {[%emt 0:01:40]} Nc5+ {[%emt 0:00:56]} 24. Kc2 {[%emt 0:05:47]} Ne4 {[%emt 0:01:49]} 25. h5 {[%emt 0:02:55]} Nc3 {[%emt 0:00:56]} 26. Kd3 {[%emt 0:04:44]} Nxa2 {[%emt 0:00:24]} 27. Rcf1 {[%emt 0:01:42]} b5 {[%emt 0:00:57]} 28. Kd2 {[%emt 0:05:26]} bxc4 {[%emt 0:01:04]} 29. Bxc4 {[%emt 0:00:14]} Nb4 {[%emt 0:01:28]} 30. g5 {[%emt 0:00:56]} hxg5 {[%emt 0:00:30]} 31. Rxg5 {[%emt 0:00:39]} Bf6 {[%emt 0:00:33]} 32. Rg4 {[%emt 0:01:31]} Kh7 {[%emt 0:01:09]} 33. hxg6+ {[%emt 0:05:06]} fxg6 {[%emt 0:00:07]} 34. f5 {[%emt 0:00:13]} g5 {[%emt 0:00:46]} 35. Bxg5 {[%emt 0:01:28]} Kg7 {[%emt 0:00:30]} 36. Bxf6+ {[%emt 0:03:10]} Kxf6 {[%emt 0:00:04]} 37. Rg6+ {[%emt 0:00:45]} Kf7 {[%emt 0:00:09]} 38. Re6 {[%emt 0:00:44]} Rh8 {[%emt 0:01:15]} 39. f6 {[%emt 0:00:45]} Rh2+ {[%emt 0:00:35]} 40. Kd1 {[%emt 0:00:19]} exf6 {[%emt 0:00:35]} 41. Rexf6+ {[%emt 0:30:42]} Kg7 {[%emt 0:30:26]} 42. Rxd6 {[%emt 0:00:31]} a5 {[%emt 0:00:00]} 43. Rg1+ {[%emt 0:00:00]} Kh8 {[%emt 0:00:00]} 44. Rg4 {[%emt 0:00:00]} Rf8 {[%emt 0:00:00]} 45. Be2 {[%emt 0:00:00]} Rc8 {[%emt 0:01:54]} 46. Rc4 {[%emt 0:02:48]} Rg8 {[%emt 0:00:41]} 47. Kd2 {[%emt 0:01:25]} Rg5 {[%emt 0:00:26]} 48. Rc8+ {[%emt 0:00:28]} Kg7 {[%emt 0:00:24]} 49. Rc7+ {[%emt 0:00:08]} Kh8 {[%emt 0:00:29]} 50. Rd8+ {[%emt 0:00:27]} Rg8 {[%emt 0:00:19]} 51. Rxg8+ {[%emt 0:00:46]} Kxg8 {[%emt 0:00:07]} 52. d6 {[%emt 0:00:30]} Rh6 {[%emt 0:01:15]} 53. Bc4+ {[%emt 0:00:23]} Kf8 {[%emt 0:00:21]} 54. Rc8+ {[%emt 0:00:13]} Kg7 {[%emt 0:00:15]} 55. Rg8+ {[%emt 0:00:12]} Kh7 {[%emt 0:00:12]} 56. Rd8 {[%emt 0:00:33]} Rf6 {[%emt 0:00:59]} 57. Ke3 {[%emt 0:01:16]} Kg6 {[%emt 0:00:41]} 58. d7 {[%emt 0:00:21]} 1-0

[Event "EYTCC U18 Girls 2019"]
[Site "Pardubice"]
[Date "2019.07.11"]
[Round "1.36"]
[White "Rahulan, Thivyaa"]
[Black "Malicka, Maria"]
[Result "1/2-1/2"]
[ECO "C54"]
[WhiteElo "1878"]
[BlackElo "2115"]
[Annotator "NA"]
[PlyCount "135"]
[EventDate "2019.07.11"]
[EventType "swiss"]
[EventCountry "CZE"]
[SourceTitle "playchess.com"]
[Source "ChessBase"]
[SourceQuality "1"]
[WhiteTeam "England"]
[BlackTeam "Poland"]
[WhiteTeamCountry "ENG"]
[BlackTeamCountry "POL"]
[TimeControl "40/5400+30:1800+30"]

1. e4 {[%emt 0:00:00]} e5 {[%emt 0:00:00]} 2. Nf3 {[%emt 0:00:00]} Nc6 {[%emt 0:00:00]} 3. Bc4 {[%emt 0:00:28]} Bc5 {[%emt 0:00:00]} 4. c3 {[%emt 0:00:15]} Nf6 {[%emt 0:00:00]} 5. d3 {[%emt 0:00:11]} a6 {[%emt 0:00:00]} 6. Bb3 {[%emt 0:00:52]} Ba7 {[%emt 0:00:12]} 7. O-O {[%emt 0:01:24]} d6 {[%emt 0:00:20]} 8. h3 {[%emt 0:01:14]} h6 {[%emt 0:00:55]} 9. Nbd2 {[%emt 0:00:21]} O-O {[%emt 0:00:09]} 10. Re1 {[%emt 0:00:46]} Nh5 {[%emt 0:00:28]} 11. Nf1 {[%emt 0:03:06]} Qf6 {[%emt 0:00:24]} 12. Be3 {[%emt 0:06:09]} Bxe3 {[%emt 0:00:09]} 13. Nxe3 {[%emt 0:00:57]} Nf4 {[%emt 0:00:11]} 14. Kh2 {[%emt 0:04:40]} Be6 {[%emt 0:05:03]} 15. Bc2 {[%emt 0:04:19]} Rad8 {[%emt 0:15:15]} 16. d4 {[%emt 0:11:32]} d5 {[%emt 0:12:26]} 17. Nxd5 {[%emt 0:14:23]} Nxd5 {[%emt 0:00:23]} 18. exd5 {[%emt 0:00:42]} Bxd5 {[%emt 0:00:08]} 19. Nxe5 {[%emt 0:02:39]} Qxf2 {[%emt 0:07:16]} 20. Re2 {[%emt 0:00:20]} Qf4+ {[%emt 0:03:52]} 21. g3 {[%emt 0:01:17]} Qf6 {[%emt 0:06:37]} 22. Qd3 {[%emt 0:03:31]} g6 {[%emt 0:00:07]} 23. Ng4 {[%emt 0:05:41]} Qg7 {[%emt 0:11:21]} 24. Rf1 {[%emt 0:09:14]} Be6 {[%emt 0:00:33]} 25. Nf6+ {[%emt 0:02:48]} Kh8 {[%emt 0:00:05]} 26. g4 {[%emt 0:08:21]} Ne7 {[%emt 0:15:01]} 27. Bb3 {[%emt 0:07:08]} Rd6 {[%emt 0:01:49]} 28. Ne4 {[%emt 0:01:52]} Rdd8 {[%emt 0:04:11]} 29. Bxe6 {[%emt 0:03:20]} fxe6 {[%emt 0:00:03]} 30. Rxf8+ {[%emt 0:00:17]} Qxf8 {[%emt 0:02:24]} 31. Nc5 {[%emt 0:01:50]} Nd5 {[%emt 0:06:43]} 32. Nxe6 {[%emt 0:00:55]} Qd6+ {[%emt 0:00:11]} 33. Qg3 {[%emt 0:00:37]} Re8 {[%emt 0:01:38]} 34. Qxd6 {[%emt 0:00:44]} cxd6 {[%emt 0:00:01]} 35. Nf4 {[%emt 0:00:28]} Rxe2+ {[%emt 0:00:08]} 36. Nxe2 {[%emt 0:00:05]} Kg7 {[%emt 0:00:39]} 37. Kg3 {[%emt 0:00:09]} Kf6 {[%emt 0:00:52]} 38. Nf4 {[%emt 0:01:42]} Ne3 {[%emt 0:01:15]} 39. Kf3 {[%emt 0:00:57]} Nc4 {[%emt 0:02:47]} 40. b3 {[%emt 0:01:19]} Nb6 {[%emt 0:02:00]} 41. h4 {[%emt 0:31:36]} g5 {[%emt 0:08:07]} 42. hxg5+ {[%emt 0:00:00]} hxg5 {[%emt 0:00:15]} 43. Nd3 {[%emt 0:00:00]} Nd7 {[%emt 0:07:57]} 44. Ke4 {[%emt 0:00:00]} Ke6 {[%emt 0:00:59]} 45. c4 {[%emt 0:00:00]} Nf6+ {[%emt 0:03:28]} 46. Kf3 {[%emt 0:00:00]} Nd7 {[%emt 0:00:42]} 47. d5+ {[%emt 0:00:00]} Kf6 {[%emt 0:00:06]} 48. Ke4 {[%emt 0:00:00]} a5 {[%emt 0:01:22]} 49. a3 {[%emt 0:00:00]} b6 {[%emt 0:00:45]} 50. b4 {[%emt 0:00:00]} axb4 {[%emt 0:00:08]} 51. axb4 {[%emt 0:00:00]} Kg6 {[%emt 0:05:16]} 52. Kd4 {[%emt 0:00:00]} Kf7 {[%emt 0:02:35]} 53. Nf2 {[%emt 0:00:00]} Ke7 {[%emt 0:00:58]} 54. Ne4 {[%emt 0:00:00]} Ne5 {[%emt 0:00:11]} 55. Nxd6 {[%emt 0:00:00]} Nxg4 {[%emt 0:01:31]} 56. Ne4 {[%emt 0:00:00]} Nh6 {[%emt 0:00:54]} 57. Nxg5 {[%emt 0:00:00]} Nf5+ {[%emt 0:00:02]} 58. Ke5 {[%emt 0:00:00]} Ne3 {[%emt 0:01:00]} 59. Kd4 {[%emt 0:00:00]} Nf5+ {[%emt 0:00:11]} 60. Kd3 {[%emt 0:00:00]} Kd6 {[%emt 0:01:03]} 61. Ne4+ {[%emt 0:00:00]} Ke5 {[%emt 0:00:11]} 62. d6 {[%emt 0:00:00]} Nxd6 {[%emt 0:01:01]} 63. Nxd6 {[%emt 0:00:00]} Kxd6 {[%emt 0:00:01]} 64. Kd4 {[%emt 0:00:00]} Ke6 {[%emt 0:01:57]} 65. c5 {[%emt 0:00:00]} Kd7 {[%emt 0:00:09]} 66. Kd5 {[%emt 0:00:00]} bxc5 {[%emt 0:00:16]} 67. Kxc5 {[%emt 0:00:23]} Kc7 {[%emt 0:00:04]} 68. b5 {[%emt 0:00:44]} 1/2-1/2

[Event "EYTCC U18 Girls 2019"]
[Site "Pardubice"]
[Date "2019.07.11"]
[Round "1.37"]
[White "Sahin, Hayrun Nisa"]
[Black "Cvitan, Ena"]
[Result "1-0"]
[ECO "B13"]
[WhiteElo "1772"]
[BlackElo "2202"]
[Annotator "NA"]
[PlyCount "105"]
[EventDate "2019.07.11"]
[EventType "swiss"]
[EventCountry "CZE"]
[SourceTitle "playchess.com"]
[Source "ChessBase"]
[SourceQuality "1"]
[WhiteTeam "Turkey"]
[BlackTeam "Croatia"]
[WhiteTeamCountry "TUR"]
[BlackTeamCountry "CRO"]
[TimeControl "40/5400+30:1800+30"]

1. e4 {[%emt 0:00:00]} c6 {[%emt 0:00:00]} 2. d4 {[%emt 0:00:00]} d5 {[%emt 0:00:00]} 3. exd5 {[%emt 0:00:15]} cxd5 {[%emt 0:00:00]} 4. c4 {[%emt 0:00:15]} Nf6 {[%emt 0:00:11]} 5. Nc3 {[%emt 0:00:08]} Nc6 {[%emt 0:00:33]} 6. Bg5 {[%emt 0:00:16]} Be6 {[%emt 0:01:25]} 7. Nf3 {[%emt 0:04:44]} g6 {[%emt 0:00:55]} 8. Bxf6 {[%emt 0:01:33]} exf6 {[%emt 0:01:06]} 9. cxd5 {[%emt 0:00:28]} Bxd5 {[%emt 0:00:27]} 10. Bb5 {[%emt 0:04:54]} Be7 {[%emt 0:14:46]} 11. Nxd5 {[%emt 0:05:00]} Qxd5 {[%emt 0:02:02]} 12. Qa4 {[%emt 0:00:37]} O-O {[%emt 0:01:52]} 13. Bxc6 {[%emt 0:01:37]} Qe6+ {[%emt 0:05:30]} 14. Kd2 {[%emt 0:05:57]} bxc6 {[%emt 0:02:19]} 15. Rhe1 {[%emt 0:03:36]} Qd7 {[%emt 0:03:46]} 16. Ke2 {[%emt 0:07:56]} Rab8 {[%emt 0:03:20]} 17. b3 {[%emt 0:03:18]} g5 {[%emt 0:21:08]} 18. Kf1 {[%emt 0:10:55]} g4 {[%emt 0:04:56]} 19. Nh4 {[%emt 0:05:27]} Rb4 {[%emt 0:02:53]} 20. Qa6 {[%emt 0:02:50]} Rb5 {[%emt 0:07:46]} 21. Rac1 {[%emt 0:18:36]} f5 {[%emt 0:06:36]} 22. g3 {[%emt 0:03:28]} Bxh4 {[%emt 0:03:22]} 23. gxh4 {[%emt 0:01:18]} Qxd4 {[%emt 0:03:07]} 24. Qxc6 {[%emt 0:02:24]} Rd5 {[%emt 0:00:13]} 25. Red1 {[%emt 0:09:29]} Qxd1+ {[%emt 0:00:19]} 26. Rxd1 {[%emt 0:00:04]} Rxd1+ {[%emt 0:00:03]} 27. Kg2 {[%emt 0:02:06]} Rfd8 {[%emt 0:01:57]} 28. Qf6 {[%emt 0:00:36]} R8d6 {[%emt 0:01:51]} 29. Qg5+ {[%emt 0:00:53]} Kf8 {[%emt 0:00:54]} 30. Qxf5 {[%emt 0:00:11]} h6 {[%emt 0:00:37]} 31. Qc5 {[%emt 0:01:32]} a6 {[%emt 0:00:58]} 32. b4 {[%emt 0:01:16]} R1d5 {[%emt 0:01:54]} 33. Qc8+ {[%emt 0:00:22]} Kg7 {[%emt 0:00:45]} 34. a4 {[%emt 0:01:43]} Rf6 {[%emt 0:02:47]} 35. Qc2 {[%emt 0:02:28]} Rff5 {[%emt 0:02:06]} 36. Qe2 {[%emt 0:00:18]} Rf6 {[%emt 0:01:34]} 37. Qb2 {[%emt 0:00:39]} Kg6 {[%emt 0:00:43]} 38. h3 {[%emt 0:00:28]} gxh3+ {[%emt 0:00:31]} 39. Kxh3 {[%emt 0:00:05]} Rf3+ {[%emt 0:01:37]} 40. Kg2 {[%emt 0:01:09]} Rff5 {[%emt 0:00:30]} 41. Qe2 {[%emt 0:30:35]} a5 {[%emt 0:10:19]} 42. Qg4+ {[%emt 0:00:00]} Kf6 {[%emt 0:00:38]} 43. b5 {[%emt 0:00:00]} Ke7 {[%emt 0:07:15]} 44. Qe2+ {[%emt 0:00:00]} Kd7 {[%emt 0:03:04]} 45. Qc2 {[%emt 0:00:00]} Rc5 {[%emt 0:00:22]} 46. Qd2+ {[%emt 0:00:00]} Rfd5 {[%emt 0:02:00]} 47. Qxa5 {[%emt 0:00:00]} Rc4 {[%emt 0:00:30]} 48. Qa7+ {[%emt 0:00:00]} Ke6 {[%emt 0:00:14]} 49. b6 {[%emt 0:00:00]} Rg4+ {[%emt 0:01:53]} 50. Kf3 {[%emt 0:00:00]} Rdd4 {[%emt 0:00:13]} 51. b7 {[%emt 0:00:00]} Rxa4 {[%emt 0:00:12]} 52. Qe3+ {[%emt 0:00:00]} Kf5 {[%emt 0:00:39]} 53. b8=Q {[%emt 0:00:00]} 1-0

[Event "EYTCC U18 Girls 2019"]
[Site "Pardubice"]
[Date "2019.07.11"]
[Round "1.38"]
[White "Bogdanic, Katarina"]
[Black "Aydin, Gulenay"]
[Result "0-1"]
[ECO "A15"]
[WhiteElo "1955"]
[BlackElo "1934"]
[Annotator "NA"]
[PlyCount "100"]
[EventDate "2019.07.11"]
[EventType "swiss"]
[EventCountry "CZE"]
[SourceTitle "playchess.com"]
[Source "ChessBase"]
[SourceQuality "1"]
[WhiteTeam "Croatia"]
[BlackTeam "Turkey"]
[WhiteTeamCountry "CRO"]
[BlackTeamCountry "TUR"]
[TimeControl "40/5400+30:1800+30"]

1. c4 {[%emt 0:00:00]} Nf6 {[%emt 0:00:00]} 2. Nf3 {[%emt 0:00:00]} g6 {[%emt 0:00:00]} 3. g3 {[%emt 0:00:00]} Bg7 {[%emt 0:00:00]} 4. Bg2 {[%emt 0:00:03]} O-O {[%emt 0:00:00]} 5. O-O {[%emt 0:00:15]} d6 {[%emt 0:00:00]} 6. d3 {[%emt 0:00:41]} c6 {[%emt 0:09:23]} 7. Nc3 {[%emt 0:02:55]} Re8 {[%emt 0:00:58]} 8. Rb1 {[%emt 0:05:56]} a5 {[%emt 0:00:29]} 9. a3 {[%emt 0:00:42]} e5 {[%emt 0:00:43]} 10. b4 {[%emt 0:04:08]} axb4 {[%emt 0:00:18]} 11. axb4 {[%emt 0:00:10]} d5 {[%emt 0:02:10]} 12. Nd2 {[%emt 0:07:38]} Na6 {[%emt 0:17:10]} 13. b5 {[%emt 0:09:05]} Nc5 {[%emt 0:06:13]} 14. bxc6 {[%emt 0:06:58]} bxc6 {[%emt 0:00:41]} 15. Qc2 {[%emt 0:02:07]} Be6 {[%emt 0:08:56]} 16. Bb2 {[%emt 0:08:39]} Rc8 {[%emt 0:03:32]} 17. Na4 {[%emt 0:11:23]} Nfd7 {[%emt 0:07:48]} 18. Nxc5 {[%emt 0:03:26]} Nxc5 {[%emt 0:02:18]} 19. Rfc1 {[%emt 0:01:12]} Qd7 {[%emt 0:04:52]} 20. Ba3 {[%emt 0:07:54]} Bf8 {[%emt 0:02:53]} 21. Bxc5 {[%emt 0:07:07]} Bxc5 {[%emt 0:00:05]} 22. Qd1 {[%emt 0:02:24]} Bh3 {[%emt 0:06:23]} 23. Qf1 {[%emt 0:03:31]} Bf5 {[%emt 0:04:48]} 24. Rb3 {[%emt 0:04:13]} e4 {[%emt 0:02:30]} 25. cxd5 {[%emt 0:05:00]} cxd5 {[%emt 0:01:45]} 26. dxe4 {[%emt 0:03:28]} dxe4 {[%emt 0:03:01]} 27. Nc4 {[%emt 0:02:09]} Qa4 {[%emt 0:05:06]} 28. Rbc3 {[%emt 0:01:41]} Bd4 {[%emt 0:05:04]} 29. Nd6 {[%emt 0:00:34]} Rxc3 {[%emt 0:02:23]} 30. Nxe8 {[%emt 0:00:56]} Rxc1 {[%emt 0:01:05]} 31. Qxc1 {[%emt 0:00:12]} Qxe8 {[%emt 0:00:03]} 32. Qc4 {[%emt 0:00:38]} Bf6 {[%emt 0:00:24]} 33. h3 {[%emt 0:00:26]} h5 {[%emt 0:00:17]} 34. Qd5 {[%emt 0:00:32]} Kg7 {[%emt 0:01:05]} 35. Kh2 {[%emt 0:00:15]} Qe5 {[%emt 0:00:52]} 36. Qxe5 {[%emt 0:00:38]} Bxe5 {[%emt 0:00:01]} 37. f4 {[%emt 0:00:56]} exf3 {[%emt 0:01:29]} 38. exf3 {[%emt 0:00:01]} g5 {[%emt 0:00:06]} 39. f4 {[%emt 0:00:51]} gxf4 {[%emt 0:00:06]} 40. gxf4 {[%emt 0:00:03]} Bxf4+ {[%emt 0:00:06]} 41. Kg1 {[%emt 0:30:01]} Bg3 {[%emt 0:30:54]} 42. Bf1 {[%emt 0:00:39]} Be4 {[%emt 0:01:54]} 43. Bg2 {[%emt 0:00:30]} Bxg2 {[%emt 0:00:36]} 44. Kxg2 {[%emt 0:00:06]} Be1 {[%emt 0:00:21]} 45. Kf3 {[%emt 0:00:35]} Kg6 {[%emt 0:00:08]} 46. Ke2 {[%emt 0:00:35]} Bh4 {[%emt 0:00:09]} 47. Kf3 {[%emt 0:00:08]} Kg5 {[%emt 0:00:04]} 48. Ke4 {[%emt 0:00:27]} Bg3 {[%emt 0:00:11]} 49. Kf3 {[%emt 0:00:10]} Kh4 {[%emt 0:00:04]} 50. Kg2 {[%emt 0:00:08]} f5 {[%emt 0:00:09]} 0-1

[Event "EYTCC U18 Girls 2019"]
[Site "Pardubice"]
[Date "2019.07.11"]
[Round "1.39"]
[White "Katkov, Michelle"]
[Black "Kuhar, Larisa"]
[Result "1/2-1/2"]
[ECO "B23"]
[WhiteElo "2129"]
[BlackElo "1894"]
[Annotator "NA"]
[PlyCount "140"]
[EventDate "2019.07.11"]
[EventType "swiss"]
[EventCountry "CZE"]
[SourceTitle "playchess.com"]
[Source "ChessBase"]
[SourceQuality "1"]
[WhiteTeam "Israel"]
[BlackTeam "Slovenia"]
[WhiteTeamCountry "ISR"]
[BlackTeamCountry "SLO"]
[TimeControl "40/5400+30:1800+30"]

1. e4 {[%emt 0:00:00]} c5 {[%emt 0:00:00]} 2. Nc3 {[%emt 0:00:00]} d6 {[%emt 0:00:25]} 3. d4 {[%emt 0:00:11]} cxd4 {[%emt 0:01:23]} 4. Qxd4 {[%emt 0:00:06]} Nc6 {[%emt 0:01:38]} 5. Qd2 {[%emt 0:00:10]} Nf6 {[%emt 0:01:12]} 6. b3 {[%emt 0:00:28]} a6 {[%emt 0:07:18]} 7. Bb2 {[%emt 0:01:26]} b5 {[%emt 0:06:07]} 8. f3 {[%emt 0:04:51]} e6 {[%emt 0:04:42]} 9. O-O-O {[%emt 0:00:56]} Be7 {[%emt 0:01:06]} 10. Kb1 {[%emt 0:00:42]} Qb6 {[%emt 0:04:58]} 11. g4 {[%emt 0:05:12]} Bb7 {[%emt 0:03:30]} 12. Bg2 {[%emt 0:06:10]} Nd7 {[%emt 0:10:28]} 13. f4 {[%emt 0:09:52]} Nc5 {[%emt 0:04:00]} 14. Nf3 {[%emt 0:21:22]} O-O {[%emt 0:09:35]} 15. g5 {[%emt 0:15:21]} b4 {[%emt 0:04:48]} 16. Na4 {[%emt 0:02:48]} Nxa4 {[%emt 0:01:00]} 17. bxa4 {[%emt 0:00:04]} Rfc8 {[%emt 0:07:12]} 18. f5 {[%emt 0:03:00]} Na5 {[%emt 0:12:06]} 19. Qd4 {[%emt 0:07:53]} Qxd4 {[%emt 0:00:21]} 20. Nxd4 {[%emt 0:02:12]} e5 {[%emt 0:02:32]} 21. f6 {[%emt 0:05:50]} exd4 {[%emt 0:14:53]} 22. fxe7 {[%emt 0:00:09]} Re8 {[%emt 0:01:07]} 23. Rxd4 {[%emt 0:01:41]} Rxe7 {[%emt 0:00:08]} 24. Rhd1 {[%emt 0:02:34]} Rae8 {[%emt 0:00:53]} 25. Rxb4 {[%emt 0:02:59]} Bxe4 {[%emt 0:00:33]} 26. Bxe4 {[%emt 0:00:45]} Rxe4 {[%emt 0:00:02]} 27. Rxe4 {[%emt 0:00:39]} Rxe4 {[%emt 0:00:02]} 28. Rxd6 {[%emt 0:00:22]} Re1+ {[%emt 0:00:59]} 29. Bc1 {[%emt 0:00:04]} Kf8 {[%emt 0:00:44]} 30. Rxa6 {[%emt 0:01:34]} Nc4 {[%emt 0:00:14]} 31. Rc6 {[%emt 0:00:52]} Re4 {[%emt 0:00:51]} 32. Rc5 {[%emt 0:01:59]} Ke7 {[%emt 0:00:37]} 33. a5 {[%emt 0:01:21]} Kd6 {[%emt 0:00:09]} 34. Rf5 {[%emt 0:00:37]} Ke6 {[%emt 0:00:51]} 35. Rb5 {[%emt 0:01:05]} Re1 {[%emt 0:00:28]} 36. Rc5 {[%emt 0:00:17]} Na3+ {[%emt 0:00:34]} 37. Kb2 {[%emt 0:00:06]} Kd6 {[%emt 0:00:14]} 38. Rc8 {[%emt 0:01:43]} Kd7 {[%emt 0:00:41]} 39. Rc3 {[%emt 0:00:43]} Nb5 {[%emt 0:00:05]} 40. Rf3 {[%emt 0:01:12]} Re7 {[%emt 0:00:58]} 41. Bf4 {[%emt 0:06:51]} Kc6 {[%emt 0:07:36]} 42. a4 {[%emt 0:02:20]} Nd4 {[%emt 0:01:37]} 43. Rc3+ {[%emt 0:03:20]} Kb7 {[%emt 0:00:59]} 44. Ka3 {[%emt 0:04:32]} Rd7 {[%emt 0:06:19]} 45. Be3 {[%emt 0:03:13]} Nxc2+ {[%emt 0:02:20]} 46. Rxc2 {[%emt 0:00:27]} Rd3+ {[%emt 0:00:06]} 47. Kb4 {[%emt 0:00:13]} Rxe3 {[%emt 0:00:06]} 48. h4 {[%emt 0:03:48]} f6 {[%emt 0:06:52]} 49. gxf6 {[%emt 0:01:01]} gxf6 {[%emt 0:00:03]} 50. Rc4 {[%emt 0:01:40]} f5 {[%emt 0:02:10]} 51. Kb5 {[%emt 0:01:19]} Re5+ {[%emt 0:06:31]} 52. Rc5 {[%emt 0:00:31]} Re4 {[%emt 0:01:22]} 53. a6+ {[%emt 0:02:23]} Kb8 {[%emt 0:00:28]} 54. h5 {[%emt 0:01:12]} f4 {[%emt 0:00:21]} 55. Rf5 {[%emt 0:03:12]} f3 {[%emt 0:00:40]} 56. Rf8+ {[%emt 0:01:52]} Ka7 {[%emt 0:00:08]} 57. Rf7+ {[%emt 0:00:03]} Kb8 {[%emt 0:00:30]} 58. Rf6 {[%emt 0:01:04]} Re1 {[%emt 0:00:31]} 59. Rf8+ {[%emt 0:00:34]} Ka7 {[%emt 0:00:14]} 60. Rf7+ {[%emt 0:00:08]} Ka8 {[%emt 0:00:30]} 61. Rf8+ {[%emt 0:00:46]} Ka7 {[%emt 0:00:05]} 62. Rf7+ {[%emt 0:00:11]} Ka8 {[%emt 0:00:06]} 63. Rxf3 {[%emt 0:00:30]} Re5+ {[%emt 0:01:52]} 64. Kb6 {[%emt 0:00:05]} Re6+ {[%emt 0:00:21]} 65. Kc7 {[%emt 0:01:06]} Rxa6 {[%emt 0:00:22]} 66. Rf4 {[%emt 0:00:14]} Re6 {[%emt 0:00:53]} 67. Kd7 {[%emt 0:00:28]} Re5 {[%emt 0:00:20]} 68. Rh4 {[%emt 0:01:00]} h6 {[%emt 0:00:19]} 69. Kd6 {[%emt 0:00:11]} Rg5 {[%emt 0:00:16]} 70. Ke6 {[%emt 0:00:50]} Ka7 {[%emt 0:00:06]} 1/2-1/2

[Event "EYTCC U18 Girls 2019"]
[Site "Pardubice"]
[Date "2019.07.11"]
[Round "1.40"]
[White "Kralj, Nika"]
[Black "Levitan, Ronit"]
[Result "1/2-1/2"]
[ECO "C45"]
[WhiteElo "1807"]
[BlackElo "2022"]
[Annotator "NA"]
[PlyCount "89"]
[EventDate "2019.07.11"]
[EventType "swiss"]
[EventCountry "CZE"]
[SourceTitle "playchess.com"]
[Source "ChessBase"]
[SourceQuality "1"]
[WhiteTeam "Slovenia"]
[BlackTeam "Israel"]
[WhiteTeamCountry "SLO"]
[BlackTeamCountry "ISR"]
[TimeControl "40/5400+30:1800+30"]

1. e4 {[%emt 0:00:00]} e5 {[%emt 0:00:00]} 2. Nf3 {[%emt 0:00:00]} Nc6 {[%emt 0:00:04]} 3. d4 {[%emt 0:00:00]} exd4 {[%emt 0:00:19]} 4. Nxd4 {[%emt 0:00:00]} Nf6 {[%emt 0:00:26]} 5. Nxc6 {[%emt 0:00:12]} bxc6 {[%emt 0:00:19]} 6. e5 {[%emt 0:00:06]} Qe7 {[%emt 0:00:38]} 7. Qe2 {[%emt 0:00:08]} Nd5 {[%emt 0:00:17]} 8. c4 {[%emt 0:00:08]} Ba6 {[%emt 0:00:12]} 9. Qe4 {[%emt 0:05:23]} Nb6 {[%emt 0:16:25]} 10. Nc3 {[%emt 0:02:27]} g6 {[%emt 0:11:33]} 11. Bd3 {[%emt 0:05:56]} Bg7 {[%emt 0:00:18]} 12. f4 {[%emt 0:05:17]} Qe6 {[%emt 0:09:36]} 13. c5 {[%emt 0:02:59]} Bxd3 {[%emt 0:02:08]} 14. Qxd3 {[%emt 0:00:03]} Nd5 {[%emt 0:01:17]} 15. O-O {[%emt 0:00:48]} O-O {[%emt 0:04:31]} 16. Bd2 {[%emt 0:04:23]} f6 {[%emt 0:04:30]} 17. exf6 {[%emt 0:01:00]} Bxf6 {[%emt 0:00:25]} 18. Rae1 {[%emt 0:14:01]} Qf7 {[%emt 0:00:20]} 19. b3 {[%emt 0:01:31]} Rae8 {[%emt 0:08:21]} 20. Ne4 {[%emt 0:02:13]} Bg7 {[%emt 0:03:39]} 21. Ng5 {[%emt 0:04:51]} Qf6 {[%emt 0:01:48]} 22. Qh3 {[%emt 0:04:31]} h6 {[%emt 0:06:39]} 23. Rxe8 {[%emt 0:00:20]} Rxe8 {[%emt 0:01:53]} 24. Qxd7 {[%emt 0:01:07]} Re2 {[%emt 0:07:12]} 25. Nf3 {[%emt 0:06:55]} Nxf4 {[%emt 0:13:11]} 26. Bxf4 {[%emt 0:00:31]} Qxf4 {[%emt 0:00:48]} 27. Qxc6 {[%emt 0:01:07]} Qg4 {[%emt 0:04:10]} 28. Rf2 {[%emt 0:02:50]} Rxf2 {[%emt 0:01:32]} 29. Qd5+ {[%emt 0:00:08]} Kh7 {[%emt 0:00:13]} 30. Kxf2 {[%emt 0:00:07]} Qb4 {[%emt 0:00:42]} 31. a4 {[%emt 0:05:10]} Qc3 {[%emt 0:00:38]} 32. g4 {[%emt 0:04:49]} Qb2+ {[%emt 0:01:05]} 33. Kg3 {[%emt 0:00:18]} Qc1 {[%emt 0:00:26]} 34. h4 {[%emt 0:01:01]} Qe3 {[%emt 0:00:39]} 35. c6 {[%emt 0:02:32]} Qe7 {[%emt 0:00:30]} 36. g5 {[%emt 0:01:33]} h5 {[%emt 0:00:22]} 37. Qd7 {[%emt 0:02:12]} Qb4 {[%emt 0:00:11]} 38. Qxc7 {[%emt 0:00:57]} Qg4+ {[%emt 0:01:00]} 39. Kf2 {[%emt 0:00:13]} Qe4 {[%emt 0:00:37]} 40. Qd7 {[%emt 0:00:50]} Qc2+ {[%emt 0:00:24]} 41. Kg3 {[%emt 0:30:07]} a5 {[%emt 0:07:00]} 42. c7 {[%emt 0:00:00]} Qxb3 {[%emt 0:00:21]} 43. c8=Q {[%emt 0:00:00]} Qxf3+ {[%emt 0:00:29]} 44. Kh2 {[%emt 0:00:00]} Qg2+ {[%emt 0:00:07]} 45. Kxg2 {[%emt 0:00:00]} 1/2-1/2